Cogmind - Beta 17 @@@ ROGUE MODE // 2026.06.23 @ 14:02:48 Player: chebyrekser Result: Destroyed by KK-KQD(R) with Subdweller Machine Gun Performance ------------- Evolutions (0) 0 Regions Visited (2) 400 Robots Destroyed (29) 145 Value Destroyed (568) 568 Prototype IDs (1) 20 Alien Tech Used (0) 0 Bonus (5000) 5000 TOTAL SCORE: 6133 Bonus ------- Prayed to X0-1V1 5000 Cogmind --------- Core Integrity 0/250 Matter 281/300 Energy 163/265 System Corruption 0% Temperature Cool (31) Movement Treading (320) Ox2 Location -10/Subcaves Parts ------- > --- POWER (1) -------- Improved Ion Engine > --- PROPULSION (2) --- Light Treads Light Treads > --- UTILITY (2) ------ Huge Storage Unit X0-1V1's Piety Tracker > --- WEAPON (2) ------- Subdweller Laser Beam Cannon > --- INVENTORY (25) --- Improved Ion Engine Light Treads Light Treads Aluminum Leg Aluminum Leg Aluminum Leg Wheel Wheel Heat Sink Huge Storage Unit Structural Scanner Sensor Array Signal Interpreter Seismic Detector Seismic Detector Core Shielding Core Shielding EM Pulse Gun Medium Laser Grenade Launcher Mining Laser Flail Peak State ------------ > --- POWER ------------ Improved Ion Engine > --- PROPULSION ------- Light Treads Light Treads > --- UTILITY ---------- Huge Storage Unit X0-1V1's Piety Tracker > --- WEAPON ----------- Assault Rifle Flail > --- INVENTORY -------- Improved Ion Engine Improved Ion Engine Light Treads Light Treads Light Treads Aluminum Leg Aluminum Leg Aluminum Leg Wheel Wheel Heat Sink Huge Storage Unit Structural Scanner Sensor Array Signal Interpreter Seismic Detector Seismic Detector Core Shielding Core Shielding EM Pulse Gun Medium Laser Particle Gun Beam Cannon Grenade Launcher Mining Laser [Rating: 23] Favorites ----------- Power Ion Engine Engine Ion Engine Propulsion Light Treads Treads Light Treads Wheel Wheel Utility Seismic Detector Device Seismic Detector Storage Huge Storage Unit Weapon Assault Rifle Energy Gun EM Pulse Gun Energy Cannon Beam Cannon Ballistic Gun Assault Rifle Special Weapon Mining Laser Impact Weapon Flail Build | -11 -10 -10 ------- Run | Yrd Mat Sub Slots Evolved . | . . . Power . | . . . Propulsion . | . . . Utility . | . . . Weapon . | . . . Parts Attached 23 | 8 10 5 Power 4 | 1 2 1 Engine 4 | 1 2 1 Core . | . . . Reactor . | . . . Propulsion 6 | 2 3 1 Treads 4 | 2 1 1 Leg . | . . . Wheel 2 | . 2 . Hover . | . . . Flight . | . . . Utility 5 | 2 3 . Device 3 | 1 2 . Storage 2 | 1 1 . Processor . | . . . Hackware . | . . . Protection . | . . . Artifact . | . . . Weapon 8 | 3 2 3 Energy Gun 4 | 2 . 2 Energy Cannon 1 | . 1 . Ballistic Gun 1 | 1 . . Ballistic Cannon . | . . . Launcher . | . . . Special Weapon 1 | . . 1 Impact Weapon 1 | . 1 . Slashing Weapon . | . . . Piercing Weapon . | . . . Special Melee Weapon . | . . . Unidentified Prototypes 1 | . 1 . Parts Lost 5 | . 1 4 Power 1 | . . 1 Propulsion 1 | . . 1 Utility . | . . . Weapon 3 | . 1 2 Highest Loss Streak 1 | . 1 1 To Critical Strikes . | . . . Average Backups 19 | 5 20 24 Power 2 | . 2 1 Propulsion 7 | 2 8 7 Utility 5 | . 5 9 Weapon 3 | 1 3 5 Tool/Special . | . . . Unused Backups 23 | . 5 18 Power 1 | . . 1 Propulsion 9 | . 3 6 Utility 9 | . 1 8 Weapon 4 | . 1 3 Tool/Special . | . . . Average Slot Usage (%) 98 | . 99 95 Engine 13 | . 13 9 Treads 26 | . 26 19 Wheel 1 | . . 8 Device 13 | . 13 14 Storage 14 | . 14 14 Energy Gun 10 | . 10 10 Energy Cannon 3 | . 2 13 Ballistic Gun 11 | . 12 . Impact Weapon 2 | . 2 . Peak Build Rating 23 | 7 23 23 Average Rating 9 | 5 8 22 On Entrance 10 | . 7 23 Avg Prop Armor Cover (%) 12 | . 11 13 Naked Turns . | . . . Heaviest Build 94 | 15 92 94 Greatest Support 40 | 40 40 40 Greatest Overweight (x) 9 | . 8 9 Average Overweight (x) 2 | . 2 8 Largest Inventory Capacity 25 | 8 25 25 Average Capacity 22 | 7 23 25 Most Carried 25 | 8 25 25 Average Carried 19 | 5 20 23 Final Capacity 25 | 8 25 25 Final Carried 25 | 8 25 22 Class Distribution -------------------- 100% | Mutant Dominant Class ---------------- Mutant | -10/Materials Mutant | -10/Subcaves Resources | -11 -10 -10 ----------- Run | Yrd Mat Sub Matter Collected 914 | 326 433 155 Remotely . | . . . Salvage Created 1056 | 136 748 172 Parts 74 | 11 52 11 Haulers Intercepted 2 | . 2 . Recyclers Shooed 4 | . 4 . Parts Field Recycled . | . . . Retrieved Matter . | . . . Parts Self-Destructed 2 | . . 2 Prevented . | . . . Parts Restored . | . . . Kills | -11 -10 -10 ------- Run | Yrd Mat Sub Combat Hostiles Destroyed 15 | . 11 4 Guns 9 | . 9 . Cannons 6 | . 2 4 Classes Destroyed 9 | 2 5 2 Worker 2 | . 2 . Tunneler 4 | 3 1 . Hauler 2 | . 2 . Recycler 3 | 1 2 . Watcher 3 | . 3 . Swarmer 5 | . 5 . Grunt 6 | . 6 . Sentry 1 | . . 1 Subdweller 3 | . . 3 Best Kill Streak 4 | 4 3 1 Combat Bots Only 3 | . 3 1 Max Kills in Single Turn 2 | 1 2 1 Gunslinging 1 | . 1 . Exploded . | . . . Melee . | . . . Uniques/NPCs Destroyed . | . . . Combat | -11 -10 -10 -------- Run | Yrd Mat Sub Hostile Shots Fired 88 | . 60 28 Missed 25 | . 21 4 Hits 63 | . 39 24 Projectile 63 | . 39 24 AOE 3 | . . 3 Damage Taken 1071 | . 453 618 Core 267 | . 40 227 Absorbed by Shields . | . . . Core Remaining (%) 100 | 100 . . Volleys Fired 121 | 12 90 19 Largest 2 | 1 2 2 Hottest 125 | 20 80 125 Shots Fired 175 | 12 135 28 Gun 144 | 12 121 11 Cannon 25 | . 14 11 Launcher . | . . . Special 6 | . . 6 Kinetic 86 | 12 74 . Thermal 42 | . 14 28 Explosive . | . . . Electromagnetic 47 | . 47 . Robot Hit Streak 17 | 2 7 17 Robot Miss Streak 4 | 2 4 1 Penetration Max . | . . . Secondary Targets 1 | . 1 . Max Gunslinging Chain 1 | . 1 . Shots Hit Robots 92 | 7 68 17 Core Hits 41 | 5 28 8 Critical Kills . | . . . Critical Parts Destroyed 2 | . 2 . Critical Strikes 2 | . 2 . Destroy 2 | . 2 . Melee Attacks 2 | . 2 . Impact 2 | . 2 . Slashing . | . . . Piercing . | . . . Sneak Attacks 1 | . 1 . Combat Hostiles . | . . . Follow-up Attacks . | . . . Damage Inflicted 1527 | 78 1147 302 Guns 1139 | 78 935 126 Cannons 332 | . 156 176 Explosions . | . . . Melee 50 | . 50 . Ramming 6 | . 6 . Kinetic 600 | 78 522 . Thermal 458 | . 156 302 Explosive . | . . . Electromagnetic 413 | . 413 . Impact 50 | . 50 . Slashing . | . . . Piercing . | . . . Highest Corruption . | . . . Average Corruption . | . . . Corruption Purged . | . . . Corruption Blocked . | . . . Overload Shots . | . . . Overflow Damage 20 | . 20 . Projectiles . | . . . Explosions . | . . . Melee 20 | . 20 . Knockbacks 1 | . 1 . Impact 1 | . 1 . Kinetic . | . . . Secondary . | . . . Self-Inflicted Damage . | . . . Shots . | . . . Rammed 1 | . 1 . Targets Rammed 1 | . 1 . Kicked . | . . . Crushed . | . . . Highest Temperature 162 | . 162 25 Average Temperature 35 | . 39 12 Received Heat Transfer 249 | . 186 63 Siege Activations . | . . . Martial Activations . | . . . Shielding Activations . | . . . Robots Disrupted . | . . . Combat Hostiles . | . . . Robots Corrupted 1 | . 1 . Combat Hostiles . | . . . Parts Fried 2 | . 2 . Impact Corruptions 1 | . 1 . Robots Melted . | . . . Combat Hostiles . | . . . Parts Melted 2 | . . 2 Heat Transferred 938 | . 333 605 Parts Sabotaged . | . . . Parts Stolen . | . . . Parts Stripped . | . . . Power Chain Reactions . | . . . Alert | -11 -10 -10 ------- Run | Yrd Mat Sub Maximum Alert Level . | . . . Low Security (%) 100 | 100 100 . Level 1 . | . . . Level 2 . | . . . Level 3 . | . . . Level 4 . | . . . Level 5 . | . . . High Security . | . . . Max Security . | . . . Peak Influence 70 | 15 70 . Initial . | . . . Average 12 | 1 13 . Influence Increases 430 | 20 390 20 Destroy 0b10 Robot/C 240 | . 220 20 Destroy 0b10 Robot/NC 70 | 20 50 . Destroy Leader 70 | . 70 . Successful Hack 18 | . 18 . Disable Machine 15 | . 15 . Destroy Structure 2 | . 2 . Lose Combat Pursuer 15 | . 15 . Influence Decreases 430 | 20 388 22 Entered New Map 2 | . . 2 Time Decay 418 | 20 378 20 Lost Part 10 | . 10 . Squads Dispatched 1 | . 1 . Investigation . | . . . Extermination . | . . . Reinforcement 1 | . 1 . Assault . | . . . Garrison . | . . . Intercept . | . . . Searches Triggered . | . . . Construction Impeded . | . . . Haulers Reinforced . | . . . Active Scanning Responses . | . . . Cargo Convoy Interrupts . | . . . Stealth | -11 -10 -10 --------- Run | Yrd Mat Sub Distress Signals 2 | . 2 . Communications Jammed . | . . . Distress Signals . | . . . Times Spotted 28 | . 21 7 Peak Tracking Total 3 | . 3 2 Tactical Retreats 1 | . 1 . Traps | -11 -10 -10 ------- Run | Yrd Mat Sub Traps Triggered 4 | . 4 . Indirectly . | . . . Trap Hack Attempts . | . . . Triggered . | . . . Disarmed . | . . . Reprogrammed . | . . . Reused . | . . . Traps Extracted . | . . . Installed . | . . . Triggered . | . . . Machines | -11 -10 -10 ---------- Run | Yrd Mat Sub Machines Disabled 1 | . 1 . Max in Single Turn 1 | . 1 . Machines Repaired . | . . . Machines Dismantled . | . . . Machines Sabotaged . | . . . Overloaded Fab Kills . | . . . Hacking | -11 -10 -10 --------- Run | Yrd Mat Sub Machines Accessed 9 | . 9 . Terminals 6 | . 6 . Fabricators . | . . . Repair Stations 1 | . 1 . Recycling Units 2 | . 2 . Scanalyzers . | . . . Garrison Access . | . . . Total Hacks 18 | . 18 . Successful 6 | . 6 . Failed 12 | . 12 . Catastrophic . | . . . Database Lockouts . | . . . Manual 10 | . 10 . Terminals 7 | . 7 . Fabricators . | . . . Repair Stations 2 | . 2 . Recycling Units 9 | . 9 . Scanalyzers . | . . . Garrison Access . | . . . Terminal Hacks . | . . . Fabricator Hacks . | . . . Repair Station Hacks . | . . . Recycling Unit Hacks 1 | . 1 . Retrieve Components 1 | . 1 . Scanalyzer . | . . . Garrison Access Hacks . | . . . Unauthorized Hacks 5 | . 5 . Terminals 5 | . 5 . Skim 5 | . 5 . Fabricators . | . . . Repair Stations . | . . . Recycling Units . | . . . Scanalyzers . | . . . Garrison Access . | . . . Data Cores Recovered . | . . . Used . | . . . Hacking Detections 9 | . 9 . Full Trace Events . | . . . Feedback Events . | . . . Feedback Blocked . | . . . Robot Schematics Acquired . | . . . Robots Built . | . . . Authchips . | . . . Time . | . . . Total Robot Build Rating . | . . . Part Schematics Acquired . | . . . Parts Built . | . . . Authchips . | . . . Time . | . . . Total Part Build Rating . | . . . Part Studies Acquired . | . . . Parts Repaired . | . . . Time . | . . . Parts Recycled . | . . . Recycled Matter . | . . . Retrieved Matter . | . . . Retrieved Components 10 | . 10 . Parts Scanalyzed . | . . . Part Schematics Acquired . | . . . Parts Damaged . | . . . Bothacking | -11 -10 -10 ------------ Run | Yrd Mat Sub Used RIF Installer . | . . . Robots Hacked . | . . . Non-combat . | . . . Combat . | . . . Robot Hacks Applied . | . . . Relay Couplers Released . | . . . Fabnet Peak Effective % . | . . . Robots Rewired . | . . . Allies Hacked . | . . . Hacks Repelled . | . . . Allies | -11 -10 -10 -------- Run | Yrd Mat Sub Total Allies . | . . . Largest Group . | . . . Highest-Rated Group . | . . . Highest-Rated Ally . | . . . Total Orders . | . . . Ally Attacks . | . . . Total Damage . | . . . Kills . | . . . Allies Corrupted . | . . . Allies Melted . | . . . X0-1V1 Amusement Gains 9 | . 9 . Intel | -11 -10 -10 ------- Run | Yrd Mat Sub Active Infowar (turns) 2989 | 65 2924 . Seismic 2989 | 65 2924 . Robot Analysis Total . | . . . Derelict Logs Recovered . | . . . Drone Launches . | . . . Drone Recoveries . | . . . Exploration | -11 -10 -10 ------------- Run | Yrd Mat Sub Turns Passed 3296 | 172 2942 182 Spaces Moved 1057 | 81 929 47 Core 2 | 2 . . Treads 927 | 79 845 3 Legs . | . . . Wheels 128 | . 84 44 Hover . | . . . Flight . | . . . Fastest Speed 50 | 50 140 200 Average Speed 269 | 157 282 214 Slowest Speed 480 | 160 480 320 Overloaded Moves . | . . . Propulsion Burnouts . | . . . Robots Hopped . | . . . Potential Cave-ins . | . . . Cave-ins Triggered . | . . . Exploration Rate (%) 37 | 5 99 8 Regions Visited 2 Branch Regions 1 Pre-discovered Areas 3 | . 3 . Known Exits Taken 1 | . 1 . Unknown Exits Taken 1 | 1 . . Scrap Searched 1 | . . 1 Spaces Dug . | . . . Terrain Destroyed . | . . . Melee . | . . . Projectile . | . . . AOE . | . . . Terrain Rammed . | . . . Walls Destroyed . | . . . Machines Disabled . | . . . Actions | -11 -10 -10 --------- Run | Yrd Mat Sub Total 1306 | 110 1111 85 Wait 24 | . 19 5 Move 1055 | 80 928 47 Hop . | . . . Pick Up 40 | 9 30 1 Fast Attach 16 | 6 10 . Attach 9 | 1 4 4 Detach . | . . . Swap 25 | 2 14 9 Drop 13 | . 13 . Fire 121 | 12 90 19 Melee 2 | . 2 . Ram . | . . . Kick . | . . . Crush 1 | . 1 . Escape Stasis . | . . . Rewire . | . . . Trap . | . . . Miscellaneous . | . . . Route ------- -11/Scrapyard -10/Materials (discovered 5 exits: [*Mat x3] / [*Min] / *Sub) -10/Subcaves History --------- Turn | Location | Event 13 | -11/Scrapyard | Discovered new exit (range 16) 173 | -11/Scrapyard | Entered Materials 300 | -10/Materials | Build established: Mutant 413 | -10/Materials | Discovered new exit (range 5) 877 | -10/Materials | Discovered new exit (range 16) 1092 | -10/Materials | Discovered new exit (range 7) 1262 | -10/Materials | Discovered new exit (range 6) 2296 | -10/Materials | Learned location of Storage (-7) 2428 | -10/Materials | Identified exit to Subcaves 2428 | -10/Materials | Learned location of 1 exit from Materials 2477 | -10/Materials | Learned location of 1 exit from Recycling 2565 | -10/Materials | Learned location of 2 exits from Mines 3103 | -10/Materials | Prayed at D.C.S.S. Altar Unit 3115 | -10/Materials | Entered Subcaves 3116 | -10/Subcaves | Approached by a straggling Scientist 3236 | -10/Subcaves | Disturbed a concealed Subdweller 3248 | -10/Subcaves | Core integrity fell below 50% 3283 | -10/Subcaves | Disturbed a concealed Subdweller 3283 | -10/Subcaves | Disturbed a concealed Subdweller 3290 | -10/Subcaves | Disturbed a concealed Subdweller 3291 | -10/Subcaves | Core integrity fell below 20% 3297 | -10/Subcaves | Destroyed by KK-KQD(R) with Subdweller Machine Gun Last Messages --------------- 03250_ B4-25B(R) destroyed. 03251_ Subatomizers dissect the Sub. Monowheel. 03253_ Acquired 33 matter. 03265_ Subatomizers dissect the Sub. Monowheel. 03281_ Searching scrap... 03281_ Found Sub. Power Source. 03281_ Found 69 Matter. 03282_ Acquired 69 matter. 03283_ JM-8M3(R) angrily emerges from the Twisted Machinery. 03283_ V5-SDE(R) angrily emerges from the Twisted Machinery. 03288_ Particle Gun destroyed. 03290_ JM-8M3(R) destroyed. 03290_ KK-KQD(R) angrily emerges from the Twisted Machinery. 03296_ KK-KQD(R) affixes Scrap Shield Fragment to Scrap Shield. 03297_ X0-1V1 laughs nastily! Map ----- +----------------------------------------------------+ | ?????????????????????????????????????????????????? | | ?????????????????????????????????????????????????? | | ?????????????????????????????????????????????????? | | ?????????????????????????????????????????????????? | | ?????????????????????????????????????????????????? | | ?????????????????????????????????????????????????? | | ?????????????????????????????????????????????????? | | ????????????????????????? ??????????????????????? | | ???????????????????????? ??????????????????????? | | ???????????????????????? ????#?????????????????? | | ??????????????????? ????# ??? ###???????????????? | | ??????????????????? ??## ??? #???????????????? | | ??????????????????? ### ??? ????????????????? | | ???????????????????? ### ????????????????? | | ????????????????????? ?????????????????? | | ?????????????????????? ??????????????????? | | ??????????????????????? ??????????????????? | | ???????????????????????? ???????????????????? | | ????????????????????????? #???????????????????? | | ?????????????????????????# ###?????????????????? | | ????????????????????????## # ##????????????????? | | ???????????????? ????#### ##???????????????? | | ?????????????? ???# &=!&!# #???????????????? | | ?????????????? ???# &R&%= #?????????????????? | | ??????????????? ##$*## ##?????????????????? | | ??????????????? ?????#<@$&# #??????????????????? | | ???????????????# ????#<$$<<# #??????????????????? | | ??????????????? ??#?##R<$## #??????????????????? | | ???????????????# #?# ##### #??????????????????? | | ??????????????## ?# #??????????????????? | | ??????????????# #?###### ###??????????????????? | | ??????????????## ### ## "#???????????????????? | | ??????????????# # ##"""????????????????? | | ????????????### """""????????????????? | | ????????????# & #######" "" ???????????????? | | ???????????## &###??????"""????????????????? | | ???????????# ##??????""????????????????? | | ???????????# ##???????????????????????? | | ???????????## ##??????????????????????? | | ????????????#" ##?????????????????????? | | ???????????# ##????????????????????? | | ???????????## #????????????????????? | | ????????????# "" #???###??????????????? | | ????????????### ###???# ####???????????? | | ?????????????# #?##### ##??????????? | | ?????????????# ### #??????????? | | ?????????????# #??????????? | | ?????????????# #???????????? | | ????????????# ## # % #???????????? | | ????????????## ######## #???????????? | +----------------------------------------------------+ Best States ------------- Heat Dissipation 25 Energy Generation 12 Energy Capacity 265 Matter Stores 300 Matter Capacity 300 Sight Range 16 Terrain Scan Density 10 Evasion (%) 40 Recoil Reduction 2 Item Schematics ----------------- None Robot Schematics ------------------ None Fabricated ------------ Nothing Repaired ---------- Nothing Studied --------- None Alien Tech Used ----------------- None Achievements -------------- Chaos Is Inevitable Challenges ------------ None Game ------ Seed BlinkSigixRigger Manual? 0 Play Time 00:14:34 Cumulative 463.3 hours Start 2026.06.23 @ 13:49:31 End 2026.06.23 @ 14:02:48 Sessions 1 Manual Loads 0 Difficulty Rogue Special Mode None Game No. 124 Rogue 118 Adventurer 0 Explorer 6 Win Type - Total 34 Types 16/2/6/1/2/1/2/2/1/1 Lore% 92 Gallery% 79 Achievement% 79 Wizard Run 0 Options --------- Layout 1 ASCII 0 Keyboard 0 Movement Mouse Keybinds 0 Fullscreen 2 Font 24/Smallcaps Map View 50x35 Zoom Use 0% Tactical HUD 1 Map Filters NONE Filters NONE Steam 1 RUN: 77706689-51e7-4a6b-b33b-2cb39a4bac05